[Event "*** Titled Tuesday Blitz"]
[Site "Chess.com"]
[Date "2019.02.05"]
[Round "7"]
[White "GM_dmitrij"]
[Black "nailbeshirli"]
[Result "1-0"]
[WhiteElo "2778"]
[BlackElo "2676"]
[TimeControl "180+2"]
[EndTime "14:42:22 PST"]
[Termination "GM_dmitrij won by resignation"]

1. e4 {[%clk 0:03:01.9]} 1... Nf6 {[%clk 0:02:56.7]} 2. e5 {[%clk 0:03:02.5]}
2... Nd5 {[%clk 0:02:54.6]} 3. d4 {[%clk 0:03:04.4]} 3... d6 {[%clk 0:02:47.8]}
4. Nf3 {[%clk 0:03:06.3]} 4... g6 {[%clk 0:02:45.5]} 5. Bc4 {[%clk 0:03:05.8]}
5... Nb6 {[%clk 0:02:37.5]} 6. Bb3 {[%clk 0:03:04.4]} 6... Bg7 {[%clk
0:02:35.2]} 7. O-O {[%clk 0:03:03.4]} 7... O-O {[%clk 0:02:35.9]} 8. exd6 {[%clk
0:03:02.9]} 8... cxd6 {[%clk 0:02:36.9]} 9. a4 {[%clk 0:03:01.4]} 9... d5 {[%clk
0:02:33.4]} 10. Re1 {[%clk 0:02:51.4]} 10... Bf5 {[%clk 0:02:29.7]} 11. Bg5
{[%clk 0:02:45]} 11... f6 {[%clk 0:02:26.3]} 12. Bf4 {[%clk 0:02:43.3]} 12... g5
{[%clk 0:02:23.7]} 13. Bg3 {[%clk 0:02:37.9]} 13... Nc6 {[%clk 0:02:18.4]} 14.
a5 {[%clk 0:02:30.2]} 14... Nc4 {[%clk 0:02:15.8]} 15. a6 {[%clk 0:02:31.1]}
15... b5 {[%clk 0:02:07.2]} 16. Nc3 {[%clk 0:02:19.4]} 16... Qd7 {[%clk
0:01:53.7]} 17. Nxb5 {[%clk 0:02:10.8]} 17... N6a5 {[%clk 0:01:46]} 18. Nc7
{[%clk 0:01:56.3]} 18... Nxb3 {[%clk 0:01:40.7]} 19. cxb3 {[%clk 0:01:53.2]}
19... Nxb2 {[%clk 0:01:40.2]} 20. Qe2 {[%clk 0:01:41.5]} 20... Nd3 {[%clk
0:01:37.3]} 21. Nxa8 {[%clk 0:01:41.5]} 21... Nxe1 {[%clk 0:01:30.8]} 22. Rxe1
{[%clk 0:01:43.4]} 22... Rxa8 {[%clk 0:01:26.8]} 23. Qxe7 {[%clk 0:01:44.6]}
23... Rc8 {[%clk 0:01:08.2]} 24. h3 {[%clk 0:01:36.2]} 24... Rc6 {[%clk
0:01:03.2]} 25. Qb4 {[%clk 0:00:55.7]} 25... Rb6 {[%clk 0:00:58]} 26. Qc5 {[%clk
0:00:51.2]} 26... Bf8 {[%clk 0:00:55.1]} 27. Qc1 {[%clk 0:00:31]} 27... Rxb3
{[%clk 0:00:50.8]} 28. h4 {[%clk 0:00:21.9]} 28... Bb4 {[%clk 0:00:47]} 29. Rd1
{[%clk 0:00:20.1]} 29... gxh4 {[%clk 0:00:43.8]} 30. Nxh4 {[%clk 0:00:20.4]}
30... Rb1 {[%clk 0:00:35.6]} 31. Qxb1 {[%clk 0:00:15.5]} 31... Bxb1 {[%clk
0:00:37.5]} 32. Rxb1 {[%clk 0:00:17.2]} 32... Qa4 {[%clk 0:00:29.1]} 33. Nf5
{[%clk 0:00:16.3]} 33... Bf8 {[%clk 0:00:19]} 34. Ne3 {[%clk 0:00:13.2]} 34...
Qxa6 {[%clk 0:00:18.9]} 35. Nxd5 {[%clk 0:00:14.5]} 35... Qa2 {[%clk 0:00:18.1]}
36. Rb5 {[%clk 0:00:06.3]} 36... a6 {[%clk 0:00:17.3]} 37. Nxf6+ {[%clk
0:00:06.7]} 37... Kf7 {[%clk 0:00:18.5]} 38. Rb6 {[%clk 0:00:08.1]} 38... Be7
{[%clk 0:00:15]} 39. Be5 {[%clk 0:00:08.8]} 39... Qa1+ {[%clk 0:00:08.5]} 40.
Kh2 {[%clk 0:00:09.2]} 40... Qd1 {[%clk 0:00:08.9]} 41. Rb7 {[%clk 0:00:07.4]}
41... Qe2 {[%clk 0:00:06.2]} 42. Nd5 {[%clk 0:00:04.3]} 42... Qh5+ {[%clk
0:00:07.1]} 43. Kg1 {[%clk 0:00:05.6]} 43... Qd1+ {[%clk 0:00:08]} 44. Kh2
{[%clk 0:00:06.7]} 44... Qh5+ {[%clk 0:00:09.7]} 45. Kg1 {[%clk 0:00:07.7]}
45... Qd1+ {[%clk 0:00:10.8]} 46. Kh2 {[%clk 0:00:08.9]} 46... Qh5+ {[%clk
0:00:11.8]} 47. Kg1 {[%clk 0:00:09.8]} 47... Qd1+ {[%clk 0:00:13.4]} 48. Kh2
{[%clk 0:00:10.6]} 48... Ke6 {[%clk 0:00:11]} 49. Nf4+ {[%clk 0:00:08.7]} 49...
Kf7 {[%clk 0:00:10.2]} 50. Bd6 {[%clk 0:00:09.6]} 50... Qxd4 {[%clk 0:00:10.7]}
51. Rxe7+ {[%clk 0:00:11]} 51... Kg8 {[%clk 0:00:11.9]} 52. Be5 {[%clk
0:00:10.4]} 52... Qc4 {[%clk 0:00:11.7]} 53. Rg7+ {[%clk 0:00:08]} 53... Kf8
{[%clk 0:00:13.1]} 54. Rxh7 {[%clk 0:00:08.4]} 54... a5 {[%clk 0:00:14.5]} 55.
Bd6+ {[%clk 0:00:05.3]} 55... Kg8 {[%clk 0:00:14.7]} 56. Ra7 {[%clk 0:00:03]}
56... a4 {[%clk 0:00:15.4]} 57. Be5 {[%clk 0:00:02.7]} 57... Qb3 {[%clk
0:00:12.4]} 58. Ng6 {[%clk 0:00:02.9]} 58... Qf7 {[%clk 0:00:10.7]} 59. Rxf7
{[%clk 0:00:03.7]} 59... Kxf7 {[%clk 0:00:12.6]} 60. Nf4 {[%clk 0:00:05.6]}
60... a3 {[%clk 0:00:14.5]} 61. Ba1 {[%clk 0:00:07.5]} 61... a2 {[%clk
0:00:14.3]} 62. Kg3 {[%clk 0:00:09.4]} 62... Ke7 {[%clk 0:00:16.2]} 63. Kf3
{[%clk 0:00:11.3]} 63... Kd6 {[%clk 0:00:18.1]} 64. g4 {[%clk 0:00:13.2]} 64...
Kc5 {[%clk 0:00:20]} 65. g5 {[%clk 0:00:14.9]} 65... Kc4 {[%clk 0:00:21.9]} 66.
g6 {[%clk 0:00:16.4]} 66... Kb3 {[%clk 0:00:23.8]} 67. g7 {[%clk 0:00:17.8]}
67... Kc2 {[%clk 0:00:25.7]} 68. g8=Q {[%clk 0:00:18.9]} 68... Kb1 {[%clk
0:00:27.6]} 69. Qg7 {[%clk 0:00:19.3]} 69... Kc2 {[%clk 0:00:29.5]} 70. Qb2+
{[%clk 0:00:18.8]} 70... Kd1 {[%clk 0:00:31.4]} 71. Ke3 {[%clk 0:00:19.5]} 1-0

[Event "*** Titled Tuesday Blitz"]
[Site "Chess.com"]
[Date "2019.02.05"]
[Round "7"]
[White "MFguimaraes"]
[Black "riconaipe"]
[Result "0-1"]
[WhiteElo "2280"]
[BlackElo "2427"]
[TimeControl "180+2"]
[EndTime "14:42:29 PST"]
[Termination "riconaipe won by checkmate"]

1. e4 {[%clk 0:03:01.9]} 1... c6 {[%clk 0:02:49.8]} 2. d4 {[%clk 0:03:01.6]}
2... d5 {[%clk 0:02:51]} 3. Nd2 {[%clk 0:03:03]} 3... dxe4 {[%clk 0:02:51.7]} 4.
Nxe4 {[%clk 0:03:04.9]} 4... Bf5 {[%clk 0:02:51.5]} 5. Ng3 {[%clk 0:03:04.7]}
5... Bg6 {[%clk 0:02:52.6]} 6. Nf3 {[%clk 0:03:06.2]} 6... Nd7 {[%clk
0:02:52.8]} 7. h4 {[%clk 0:03:05.9]} 7... h6 {[%clk 0:02:54.3]} 8. h5 {[%clk
0:03:07.8]} 8... Bh7 {[%clk 0:02:55.4]} 9. Bd3 {[%clk 0:03:09.7]} 9... Bxd3
{[%clk 0:02:57]} 10. Qxd3 {[%clk 0:03:11.2]} 10... e6 {[%clk 0:02:58.7]} 11. Bd2
{[%clk 0:03:11.6]} 11... Ngf6 {[%clk 0:02:56.3]} 12. Rh4 {[%clk 0:03:11.4]}
12... Be7 {[%clk 0:02:55.8]} 13. Kf1 {[%clk 0:03:11.2]} 13... O-O {[%clk
0:02:55.7]} 14. Re1 {[%clk 0:03:11]} 14... Qc7 {[%clk 0:02:52.4]} 15. Ne4 {[%clk
0:03:06.8]} 15... Nxe4 {[%clk 0:02:50.1]} 16. Rhxe4 {[%clk 0:03:08.7]} 16... Nf6
{[%clk 0:02:51.3]} 17. R4e2 {[%clk 0:03:06.7]} 17... Nxh5 {[%clk 0:02:49.1]} 18.
g4 {[%clk 0:03:06.3]} 18... Nf6 {[%clk 0:02:49.3]} 19. Ne5 {[%clk 0:03:07]}
19... Bd6 {[%clk 0:02:34.4]} 20. g5 {[%clk 0:03:07.9]} 20... hxg5 {[%clk
0:02:33.9]} 21. Bxg5 {[%clk 0:03:09.8]} 21... Nh7 {[%clk 0:02:34.3]} 22. Bd2
{[%clk 0:03:05.3]} 22... Bxe5 {[%clk 0:02:34.3]} 23. Rxe5 {[%clk 0:03:02.6]}
23... Rad8 {[%clk 0:02:31.8]} 24. Rh5 {[%clk 0:02:57.5]} 24... g6 {[%clk
0:02:27.9]} 25. Bh6 {[%clk 0:02:53.1]} 25... gxh5 {[%clk 0:02:12]} 26. Ke2
{[%clk 0:02:52.7]} 26... Qh2 {[%clk 0:02:04.9]} 27. Rh1 {[%clk 0:02:49]} 27...
Qe5+ {[%clk 0:01:32.9]} 28. dxe5 {[%clk 0:02:45.2]} 28... Rxd3 {[%clk
0:01:34.8]} 29. cxd3 {[%clk 0:02:45.1]} 29... Re8 {[%clk 0:01:28.4]} 30. Rxh5
{[%clk 0:02:39.6]} 30... f6 {[%clk 0:01:29.4]} 31. Bf4 {[%clk 0:02:39.4]} 31...
Kg7 {[%clk 0:01:24.5]} 32. exf6+ {[%clk 0:02:39.8]} 32... Nxf6 {[%clk
0:01:25.5]} 33. Be5 {[%clk 0:02:41.1]} 33... Kg6 {[%clk 0:01:27.4]} 34. Rh1
{[%clk 0:02:39.7]} 34... Nd7 {[%clk 0:01:23.3]} 35. Rg1+ {[%clk 0:02:40.2]}
35... Kf5 {[%clk 0:01:21.7]} 36. Bd6 {[%clk 0:02:38.7]} 36... e5 {[%clk
0:01:19.3]} 37. Rg7 {[%clk 0:02:39.7]} 37... Ke6 {[%clk 0:01:19.2]} 38. Bb4
{[%clk 0:02:40]} 38... c5 {[%clk 0:01:16.3]} 39. Bc3 {[%clk 0:02:38.8]} 39... b5
{[%clk 0:01:11.8]} 40. a3 {[%clk 0:02:37.3]} 40... Rc8 {[%clk 0:01:10.6]} 41.
Rg6+ {[%clk 0:02:35.3]} 41... Kd5 {[%clk 0:01:09.6]} 42. Ra6 {[%clk 0:02:36]}
42... Rc7 {[%clk 0:01:08.9]} 43. Ba5 {[%clk 0:02:36]} 43... Rb7 {[%clk 0:01:10]}
44. Bd8 {[%clk 0:02:36.4]} 44... c4 {[%clk 0:01:11.1]} 45. Be7 {[%clk
0:02:36.9]} 45... Nb6 {[%clk 0:01:08]} 46. dxc4+ {[%clk 0:02:30.9]} 46... bxc4
{[%clk 0:00:52.9]} 47. Ra5+ {[%clk 0:02:30.5]} 47... Ke6 {[%clk 0:00:49.1]} 48.
Bc5 {[%clk 0:02:30.2]} 48... Nd5 {[%clk 0:00:49.9]} 49. Ra6+ {[%clk 0:02:29.4]}
49... Kf5 {[%clk 0:00:50.7]} 50. Rxa7 {[%clk 0:02:29.1]} 50... Rxb2+ {[%clk
0:00:50.6]} 51. Ke1 {[%clk 0:02:29.4]} 51... Nf4 {[%clk 0:00:48]} 52. Be3 {[%clk
0:02:18.1]} 52... Nd3+ {[%clk 0:00:46.8]} 53. Kf1 {[%clk 0:02:18.3]} 53... c3
{[%clk 0:00:41.3]} 54. Rc7 {[%clk 0:02:16.8]} 54... c2 {[%clk 0:00:41.9]} 55.
Kg2 {[%clk 0:02:18.2]} 55... Ra2 {[%clk 0:00:31.7]} 56. a4 {[%clk 0:02:12.4]}
56... Nb4 {[%clk 0:00:28.9]} 57. Rc4 {[%clk 0:02:03]} 57... Nd5 {[%clk
0:00:27.4]} 58. Kf3 {[%clk 0:02:00.7]} 58... e4+ {[%clk 0:00:20.6]} 59. Kg3
{[%clk 0:01:53.7]} 59... Ke5 {[%clk 0:00:19.5]} 60. Bd4+ {[%clk 0:01:54.1]}
60... Kf5 {[%clk 0:00:19.6]} 61. Rc5 {[%clk 0:01:55.2]} 61... Ke6 {[%clk
0:00:17.6]} 62. a5 {[%clk 0:01:50.2]} 62... Nb4 {[%clk 0:00:18.6]} 63. Be3
{[%clk 0:01:44.9]} 63... Nd3 {[%clk 0:00:19.5]} 64. Rc4 {[%clk 0:01:40]} 64...
Kd5 {[%clk 0:00:20.5]} 65. Rd4+ {[%clk 0:01:40.4]} 65... Ke5 {[%clk 0:00:21.7]}
66. Rc4 {[%clk 0:01:38.8]} 66... Ne1 {[%clk 0:00:20.5]} 67. Rc5+ {[%clk
0:01:34.7]} 67... Ke6 {[%clk 0:00:21.5]} 68. Rc6+ {[%clk 0:01:34]} 68... Kd5
{[%clk 0:00:21.8]} 69. Rc5+ {[%clk 0:01:35.3]} 69... Kd6 {[%clk 0:00:23.5]} 70.
Rc4 {[%clk 0:01:26.2]} 70... Kd5 {[%clk 0:00:18.2]} 71. Rd4+ {[%clk 0:01:24.1]}
71... Ke5 {[%clk 0:00:18.3]} 72. Rc4 {[%clk 0:01:19.2]} 72... Nd3 {[%clk
0:00:19.4]} 73. f4+ {[%clk 0:01:12.9]} 73... exf3 {[%clk 0:00:19.7]} 74. Kxf3
{[%clk 0:01:13.7]} 74... Ra3 {[%clk 0:00:19.8]} 75. Rxc2 {[%clk 0:01:13]} 75...
Ne1+ {[%clk 0:00:20.6]} 76. Ke2 {[%clk 0:01:14.4]} 76... Nxc2 {[%clk 0:00:22.5]}
77. Bd2 {[%clk 0:01:15.6]} 77... Nd4+ {[%clk 0:00:22.6]} 78. Kf2 {[%clk
0:01:15.4]} 78... Nc6 {[%clk 0:00:23.8]} 79. Ke2 {[%clk 0:01:15.8]} 79... Nxa5
{[%clk 0:00:24.8]} 80. Kd1 {[%clk 0:01:17.2]} 80... Kd4 {[%clk 0:00:23.6]} 81.
Kc2 {[%clk 0:01:18.1]} 81... Kc4 {[%clk 0:00:24.3]} 82. Bc1 {[%clk 0:01:18.2]}
82... Rh3 {[%clk 0:00:22.3]} 83. Kb1 {[%clk 0:01:18.3]} 83... Rh2 {[%clk
0:00:23.1]} 84. Bf4 {[%clk 0:01:17.2]} 84... Rg2 {[%clk 0:00:22.5]} 85. Kc1
{[%clk 0:01:17.2]} 85... Kd3 {[%clk 0:00:23.4]} 86. Kd1 {[%clk 0:01:19.1]} 86...
Rg1# {[%clk 0:00:23.9]} 0-1

[Event "*** Titled Tuesday Blitz"]
[Site "Chess.com"]
[Date "2019.02.05"]
[Round "7"]
[White "FelixBlohberger"]
[Black "Sebastian"]
[Result "0-1"]
[WhiteElo "2667"]
[BlackElo "2878"]
[TimeControl "180+2"]
[EndTime "14:42:38 PST"]
[Termination "Sebastian won by resignation"]

1. e4 {[%clk 0:03:00.5]} 1... c5 {[%clk 0:03:01.2]} 2. Nf3 {[%clk 0:03:00.3]}
2... d6 {[%clk 0:03:02.6]} 3. d4 {[%clk 0:03:01.1]} 3... cxd4 {[%clk 0:03:03.8]}
4. Nxd4 {[%clk 0:03:03]} 4... Nf6 {[%clk 0:03:05.5]} 5. Nc3 {[%clk 0:03:04]}
5... a6 {[%clk 0:03:07.1]} 6. Be3 {[%clk 0:03:04.8]} 6... e5 {[%clk 0:03:07.6]}
7. Nf3 {[%clk 0:03:05.4]} 7... Qc7 {[%clk 0:03:05.7]} 8. a4 {[%clk 0:03:01.8]}
8... Be6 {[%clk 0:03:06.7]} 9. Be2 {[%clk 0:03:03.1]} 9... Be7 {[%clk
0:03:04.7]} 10. Ng5 {[%clk 0:03:04.1]} 10... Bd7 {[%clk 0:03:04.4]} 11. O-O
{[%clk 0:03:05.4]} 11... h6 {[%clk 0:02:59.6]} 12. Nf3 {[%clk 0:03:06.3]} 12...
Be6 {[%clk 0:03:01.2]} 13. Nd5 {[%clk 0:02:54.8]} 13... Nxd5 {[%clk 0:02:58.8]}
14. exd5 {[%clk 0:02:55.9]} 14... Bf5 {[%clk 0:03:00.4]} 15. Bd3 {[%clk
0:02:44.8]} 15... Bxd3 {[%clk 0:02:51.5]} 16. Qxd3 {[%clk 0:02:44.7]} 16... Nd7
{[%clk 0:02:53]} 17. c4 {[%clk 0:02:37.8]} 17... O-O {[%clk 0:02:51.7]} 18. a5
{[%clk 0:02:37.8]} 18... f5 {[%clk 0:02:52.6]} 19. Qe2 {[%clk 0:02:15.3]} 19...
Bf6 {[%clk 0:02:51.6]} 20. Qc2 {[%clk 0:01:44]} 20... e4 {[%clk 0:02:32.1]} 21.
Nd4 {[%clk 0:01:41.2]} 21... Bxd4 {[%clk 0:02:29.4]} 22. Bxd4 {[%clk 0:01:42]}
22... Rae8 {[%clk 0:02:30]} 23. b4 {[%clk 0:01:35.4]} 23... Ne5 {[%clk
0:02:29.2]} 24. Bxe5 {[%clk 0:01:01]} 24... Rxe5 {[%clk 0:02:29.6]} 25. Rac1
{[%clk 0:01:02.1]} 25... f4 {[%clk 0:02:29.8]} 26. Rfe1 {[%clk 0:00:56.7]} 26...
e3 {[%clk 0:02:12.1]} 27. fxe3 {[%clk 0:00:53.7]} 27... fxe3 {[%clk 0:02:12.8]}
28. Re2 {[%clk 0:00:53.3]} 28... Rf4 {[%clk 0:02:04.3]} 29. c5 {[%clk
0:00:46.9]} 29... Rxb4 {[%clk 0:01:52.9]} 30. cxd6 {[%clk 0:00:37.9]} 30... Qxc2
{[%clk 0:01:46.4]} 31. Rexc2 {[%clk 0:00:38.7]} 31... Rxd5 {[%clk 0:01:47.6]}
32. Re2 {[%clk 0:00:21.7]} 32... Rb3 {[%clk 0:01:47.9]} 33. Rce1 {[%clk
0:00:20.1]} 33... Rxd6 {[%clk 0:01:32.2]} 34. Rxe3 {[%clk 0:00:21]} 34... Rxe3
{[%clk 0:01:29.3]} 35. Rxe3 {[%clk 0:00:22.9]} 35... Rf6 {[%clk 0:01:24.1]} 36.
Re8+ {[%clk 0:00:20.4]} 36... Rf8 {[%clk 0:01:24.7]} 37. Re7 {[%clk 0:00:19.3]}
37... Rf7 {[%clk 0:01:25.8]} 38. Re8+ {[%clk 0:00:20.5]} 38... Kh7 {[%clk
0:01:26.9]} 39. Rb8 {[%clk 0:00:18.6]} 39... Kg6 {[%clk 0:01:26.4]} 40. Re8
{[%clk 0:00:16.3]} 40... Kf6 {[%clk 0:01:24.8]} 41. g3 {[%clk 0:00:12.9]} 41...
Re7 {[%clk 0:01:23.8]} 42. Rf8+ {[%clk 0:00:08.8]} 42... Ke6 {[%clk 0:01:23.4]}
43. Kg2 {[%clk 0:00:09]} 43... Kd6 {[%clk 0:01:23.2]} 44. Kf3 {[%clk 0:00:04.8]}
44... Kc6 {[%clk 0:01:15.8]} 45. h4 {[%clk 0:00:03.8]} 45... Kb5 {[%clk
0:01:00.9]} 46. Rf5+ {[%clk 0:00:04.7]} 46... Kb4 {[%clk 0:01:02.2]} 47. Kg4
{[%clk 0:00:05.2]} 47... Re6 {[%clk 0:00:41.5]} 48. Rd5 {[%clk 0:00:04.5]} 48...
Rg6+ {[%clk 0:00:36.7]} 49. Kf4 {[%clk 0:00:04.9]} 49... Rf6+ {[%clk 0:00:32.3]}
50. Ke4 {[%clk 0:00:03.9]} 50... g6 {[%clk 0:00:30.4]} 51. g4 {[%clk 0:00:04.4]}
51... Re6+ {[%clk 0:00:29.1]} 52. Kf4 {[%clk 0:00:05.3]} 52... Ka4 {[%clk
0:00:28.2]} 53. h5 {[%clk 0:00:06]} 53... gxh5 {[%clk 0:00:28.4]} 54. gxh5
{[%clk 0:00:07.4]} 54... Re1 {[%clk 0:00:22.5]} 55. Kf5 {[%clk 0:00:07.4]} 55...
Rg1 {[%clk 0:00:21.7]} 56. Kf6 {[%clk 0:00:08.4]} 56... Kb4 {[%clk 0:00:21.9]}
57. Re5 {[%clk 0:00:07.6]} 57... Rg2 {[%clk 0:00:22]} 58. Rd5 {[%clk 0:00:07.4]}
58... Ka4 {[%clk 0:00:22.9]} 59. Re5 {[%clk 0:00:08.1]} 59... Rg3 {[%clk
0:00:22.8]} 60. Rd5 {[%clk 0:00:09.1]} 60... Kb4 {[%clk 0:00:23.9]} 61. Re5
{[%clk 0:00:10.4]} 61... Rg8 {[%clk 0:00:24.3]} 62. Kf7 {[%clk 0:00:10.3]} 62...
Rg4 {[%clk 0:00:21.2]} 63. Kf6 {[%clk 0:00:09.7]} 63... Rc4 {[%clk 0:00:20.7]}
64. Kg7 {[%clk 0:00:08.4]} 64... Rc6 {[%clk 0:00:21.9]} 65. Re7 {[%clk
0:00:05.4]} 65... b6 {[%clk 0:00:17.6]} 66. axb6 {[%clk 0:00:05.3]} 66... Rxb6
{[%clk 0:00:19]} 67. Kh7 {[%clk 0:00:05.5]} 67... a5 {[%clk 0:00:20]} 68. Rg7
{[%clk 0:00:05.6]} 68... a4 {[%clk 0:00:21.1]} 69. Rg6 {[%clk 0:00:07]} 69...
Kb5 {[%clk 0:00:19.5]} 70. Rxb6+ {[%clk 0:00:03.7]} 70... Kxb6 {[%clk
0:00:20.5]} 71. Kxh6 {[%clk 0:00:05]} 71... a3 {[%clk 0:00:22]} 72. Kg7 {[%clk
0:00:06.5]} 72... a2 {[%clk 0:00:23]} 73. h6 {[%clk 0:00:08.4]} 73... a1=Q+
{[%clk 0:00:24.2]} 74. Kg8 {[%clk 0:00:09.9]} 74... Qa2+ {[%clk 0:00:25.2]} 75.
Kg7 {[%clk 0:00:10.2]} 75... Qb2+ {[%clk 0:00:26]} 76. Kg8 {[%clk 0:00:11.5]}
76... Qb3+ {[%clk 0:00:27.2]} 77. Kg7 {[%clk 0:00:12.6]} 77... Qc3+ {[%clk
0:00:28.4]} 78. Kg8 {[%clk 0:00:14.1]} 78... Qc4+ {[%clk 0:00:29.3]} 79. Kg7
{[%clk 0:00:15.7]} 79... Qd4+ {[%clk 0:00:30.1]} 80. Kg8 {[%clk 0:00:17.3]}
80... Qd5+ {[%clk 0:00:31.1]} 81. Kg7 {[%clk 0:00:18.8]} 81... Qg5+ {[%clk
0:00:31.7]} 0-1

[Event "*** Titled Tuesday Blitz"]
[Site "Chess.com"]
[Date "2019.02.05"]
[Round "7"]
[White "xberli"]
[Black "StephenDedalus83"]
[Result "1/2-1/2"]
[WhiteElo "2547"]
[BlackElo "2704"]
[TimeControl "180+2"]
[EndTime "14:43:08 PST"]
[Termination "Game drawn by repetition"]

1. e4 {[%clk 0:03:01.9]} 1... c5 {[%clk 0:02:53.2]} 2. Nf3 {[%clk 0:03:02.2]}
2... d6 {[%clk 0:02:53.6]} 3. d4 {[%clk 0:03:02.9]} 3... cxd4 {[%clk 0:02:55.5]}
4. Nxd4 {[%clk 0:03:04.5]} 4... Nf6 {[%clk 0:02:56.9]} 5. Nc3 {[%clk 0:03:06.1]}
5... g6 {[%clk 0:02:58]} 6. Be3 {[%clk 0:03:04.2]} 6... Bg7 {[%clk 0:02:59]} 7.
f3 {[%clk 0:03:05.5]} 7... O-O {[%clk 0:02:57.2]} 8. Qd2 {[%clk 0:03:06.4]} 8...
Nc6 {[%clk 0:02:58.6]} 9. O-O-O {[%clk 0:03:07.1]} 9... d5 {[%clk 0:02:59.1]}
10. Nxc6 {[%clk 0:03:08.2]} 10... bxc6 {[%clk 0:02:59.4]} 11. Bh6 {[%clk
0:03:09.8]} 11... Rb8 {[%clk 0:02:57]} 12. h4 {[%clk 0:03:08]} 12... Bxh6 {[%clk
0:02:48]} 13. Qxh6 {[%clk 0:03:09.9]} 13... Qa5 {[%clk 0:02:35.2]} 14. e5 {[%clk
0:02:54.9]} 14... Nh5 {[%clk 0:02:23.9]} 15. Bd3 {[%clk 0:02:26.7]} 15... Qb4
{[%clk 0:02:06.1]} 16. g4 {[%clk 0:02:17.1]} 16... Qf4+ {[%clk 0:01:41.7]} 17.
Qxf4 {[%clk 0:02:14.7]} 17... Nxf4 {[%clk 0:01:43.6]} 18. Ne2 {[%clk 0:02:05.2]}
18... Nxd3+ {[%clk 0:01:36]} 19. Rxd3 {[%clk 0:02:03]} 19... Ba6 {[%clk
0:01:36.4]} 20. Rd2 {[%clk 0:02:04.1]} 20... Bxe2 {[%clk 0:01:35.8]} 21. Rxe2
{[%clk 0:02:06]} 21... e6 {[%clk 0:01:34.2]} 22. h5 {[%clk 0:02:04.5]} 22... Rb7
{[%clk 0:01:16.3]} 23. c3 {[%clk 0:02:03.9]} 23... Rfb8 {[%clk 0:01:13.2]} 24.
g5 {[%clk 0:01:55.3]} 24... c5 {[%clk 0:01:08.6]} 25. Rh4 {[%clk 0:01:55.1]}
25... a5 {[%clk 0:01:07.2]} 26. Ra4 {[%clk 0:01:49]} 26... Rb5 {[%clk
0:01:00.6]} 27. Rd2 {[%clk 0:01:41.5]} 27... c4 {[%clk 0:00:57.6]} 28. h6 {[%clk
0:01:34.6]} 28... Kf8 {[%clk 0:00:56.2]} 29. Kb1 {[%clk 0:01:29.3]} 29... Ke7
{[%clk 0:00:56.2]} 30. Kc1 {[%clk 0:01:29.7]} 30... R8b6 {[%clk 0:00:54.9]} 31.
Kb1 {[%clk 0:01:27.7]} 31... Rc6 {[%clk 0:00:55.7]} 32. Kc2 {[%clk 0:01:26.6]}
32... Rcb6 {[%clk 0:00:55.9]} 33. Kc1 {[%clk 0:01:26.7]} 33... Ke8 {[%clk
0:00:54.8]} 34. Kb1 {[%clk 0:01:20.8]} 34... Rc6 {[%clk 0:00:48]} 35. Kc2 {[%clk
0:01:20.6]} 35... Rbc5 {[%clk 0:00:49]} 36. f4 {[%clk 0:01:20.1]} 36... Kd7
{[%clk 0:00:49.5]} 37. Rd4 {[%clk 0:01:12.1]} 37... Kc7 {[%clk 0:00:49.9]} 38.
Kc1 {[%clk 0:01:13.2]} 38... Kb6 {[%clk 0:00:50.2]} 39. Ra3 {[%clk 0:01:12.7]}
39... Kb5 {[%clk 0:00:50.2]} 40. Kc2 {[%clk 0:01:13.8]} 40... a4 {[%clk
0:00:51.2]} 41. Kc1 {[%clk 0:01:15]} 41... Rc7 {[%clk 0:00:51.8]} 42. Kc2 {[%clk
0:01:15.9]} 42... Rb7 {[%clk 0:00:52.1]} 43. b3 {[%clk 0:01:12.5]} 43... axb3+
{[%clk 0:00:51.5]} 44. axb3 {[%clk 0:01:14.4]} 44... cxb3+ {[%clk 0:00:51.1]}
45. Rxb3+ {[%clk 0:01:14]} 45... Kc6 {[%clk 0:00:51.9]} 46. Rxb7 {[%clk
0:01:14.7]} 46... Kxb7 {[%clk 0:00:52.9]} 47. Rb4+ {[%clk 0:01:16.2]} 47... Kc7
{[%clk 0:00:53.4]} 48. Kd3 {[%clk 0:01:17.3]} 48... Ra5 {[%clk 0:00:53.6]} 49.
Kd4 {[%clk 0:01:15.8]} 49... Ra6 {[%clk 0:00:51]} 50. c4 {[%clk 0:01:13.8]}
50... dxc4 {[%clk 0:00:50.7]} 51. Rxc4+ {[%clk 0:01:15.1]} 51... Kb7 {[%clk
0:00:48.9]} 52. Rb4+ {[%clk 0:01:14.3]} 52... Kc7 {[%clk 0:00:49.7]} 53. Rc4+
{[%clk 0:01:15.2]} 53... Kb7 {[%clk 0:00:49.2]} 54. Ke4 {[%clk 0:01:10.6]} 54...
Ra1 {[%clk 0:00:48.5]} 55. Rd4 {[%clk 0:01:09.6]} 55... Kc7 {[%clk 0:00:49.4]}
56. Rc4+ {[%clk 0:01:10]} 56... Kb7 {[%clk 0:00:49.7]} 57. Kd4 {[%clk
0:01:10.1]} 57... Rd1+ {[%clk 0:00:49.4]} 58. Kc5 {[%clk 0:01:09.1]} 58... Rd5+
{[%clk 0:00:49.9]} 59. Kb4 {[%clk 0:01:10.1]} 59... Rd3 {[%clk 0:00:50.1]} 60.
Kc5 {[%clk 0:01:07.8]} 60... Rd5+ {[%clk 0:00:50.9]} 61. Kb4 {[%clk 0:01:08.9]}
61... Kb6 {[%clk 0:00:51.5]} 62. Rc8 {[%clk 0:00:56.8]} 62... Rd4+ {[%clk
0:00:51.7]} 63. Kc3 {[%clk 0:00:57.4]} 63... Rxf4 {[%clk 0:00:52.4]} 64. Rh8
{[%clk 0:00:59.1]} 64... Rf5 {[%clk 0:00:52.3]} 65. Rxh7 {[%clk 0:00:59.8]}
65... Rxe5 {[%clk 0:00:51.5]} 66. Rxf7 {[%clk 0:00:59.1]} 66... Rxg5 {[%clk
0:00:52.2]} 67. Rf6 {[%clk 0:00:59.6]} 67... Kc5 {[%clk 0:00:50.1]} 68. Rxe6
{[%clk 0:00:58.1]} 68... Kd5 {[%clk 0:00:51.1]} 69. Ra6 {[%clk 0:00:57.8]} 69...
Rg3+ {[%clk 0:00:47.9]} 70. Kd2 {[%clk 0:00:58.3]} 70... g5 {[%clk 0:00:48.2]}
71. h7 {[%clk 0:00:54.1]} 71... Rh3 {[%clk 0:00:49]} 72. Ra7 {[%clk 0:00:50.9]}
72... Ke4 {[%clk 0:00:49.5]} 73. Ke2 {[%clk 0:00:51.6]} 73... Rh2+ {[%clk
0:00:40.7]} 74. Kf1 {[%clk 0:00:52.6]} 74... g4 {[%clk 0:00:41.4]} 75. Kg1
{[%clk 0:00:52.1]} 75... g3 {[%clk 0:00:41.4]} 76. Rf7 {[%clk 0:00:50.4]} 76...
Ke3 {[%clk 0:00:40.9]} 77. Rg7 {[%clk 0:00:49.1]} 77... Kf3 {[%clk 0:00:41.2]}
78. Rf7+ {[%clk 0:00:48.3]} 78... Ke3 {[%clk 0:00:42.2]} 79. Re7+ {[%clk
0:00:49]} 79... Kf3 {[%clk 0:00:43.2]} 80. Rf7+ {[%clk 0:00:50.3]} 80... Ke3
{[%clk 0:00:44.3]} 81. Ra7 {[%clk 0:00:50.3]} 81... Kf3 {[%clk 0:00:44.4]} 82.
Rg7 {[%clk 0:00:47.2]} 82... Kf4 {[%clk 0:00:44.6]} 83. Rf7+ {[%clk 0:00:45.1]}
83... Kg4 {[%clk 0:00:45.3]} 84. Rg7+ {[%clk 0:00:44.7]} 84... Kf3 {[%clk
0:00:46.2]} 85. Rf7+ {[%clk 0:00:44.7]} 85... Kg4 {[%clk 0:00:46.8]} 86. Rg7+
{[%clk 0:00:43.8]} 86... Kf3 {[%clk 0:00:47.4]} 87. Rf7+ {[%clk 0:00:43]} 87...
Ke3 {[%clk 0:00:47.6]} 88. Rb7 {[%clk 0:00:43.1]} 88... Rh5 {[%clk 0:00:46.3]}
89. Kg2 {[%clk 0:00:41.5]} 89... Kf4 {[%clk 0:00:47.3]} 90. Rb4+ {[%clk
0:00:37.9]} 90... Ke3 {[%clk 0:00:48.1]} 91. Rb3+ {[%clk 0:00:35.5]} 91... Ke4
{[%clk 0:00:48.2]} 92. Rb7 {[%clk 0:00:34.1]} 92... Kf4 {[%clk 0:00:48]} 93.
Rf7+ {[%clk 0:00:34.9]} 93... Kg4 {[%clk 0:00:48.5]} 94. Rg7+ {[%clk 0:00:33.2]}
94... Kf4 {[%clk 0:00:49.6]} 95. Rf7+ {[%clk 0:00:33.7]} 95... Kg4 {[%clk
0:00:50.6]} 96. Rg7+ {[%clk 0:00:33]} 96... Kf4 {[%clk 0:00:51.1]} 97. Rf7+
{[%clk 0:00:34]} 1/2-1/2